[Event "Chelyabinskiy variant-A 2021"]
[Site "Chelyabinsk"]
[Date "2021.03.28"]
[Round "7.5"]
[White "Frolyanov, Dmitry"]
[Black "Makarian, Rudik"]
[Result "1/2-1/2"]
[ECO "C67"]
[WhiteElo "2542"]
[BlackElo "2458"]
[Annotator "ChessBase"]
[PlyCount "33"]
[EventDate "2021.03.23"]
[EventType "swiss"]
[EventCountry "RUS"]
[SourceTitle "playchess.com"]
[Source "ChessBase"]
[SourceQuality "1"]
[TimeControl "5400+30"]

1. e4 {[%emt 0:00:00]} e5 {[%emt 0:04:54]} 2. Nf3 {[%emt 0:00:00]} Nc6 {[%emt 0:00:03]} 3. Bb5 {[%emt 0:00:00]} Nf6 {[%emt 0:00:08]} 4. O-O {[%emt 0:00:00]} Nxe4 {[%emt 0:00:03]} 5. Re1 {[%emt 0:00:08]} Nd6 {[%emt 0:00:05]} 6. Nxe5 {[%emt 0:00:07]} Be7 {[%emt 0:00:04]} 7. Bf1 {[%emt 0:00:13]} Nxe5 {[%emt 0:00:04]} 8. Rxe5 {[%emt 0:00:14]} O-O {[%emt 0:00:05]} 9. Nc3 {[%emt 0:00:22]} Ne8 {[%emt 0:04:22]} 10. Nd5 {[%emt 0:01:02]} Bd6 {[%emt 0:00:39]} 11. Re1 {[%emt 0:00:40]} c6 {[%emt 0:00:08]} 12. Ne3 {[%emt 0:00:06]} Bc7 {[%emt 0:00:03]} 13. Nf5 {[%emt 0:00:16]} d5 {[%emt 0:00:03]} 14. Ne7+ {[%emt 0:00:07]} Kh8 {[%emt 0:00:02]} 15. Nxc8 {[%emt 0:00:08]} Rxc8 {[%emt 0:00:28]} 16. d3 {[%emt 0:00:19]} f5 {[%emt 0:03:43]} 17. Qh5 {[%emt 0:03:42]} 1/2-1/2

[Event "Chelyabinskiy variant-A 2021"]
[Site "Chelyabinsk"]
[Date "2021.03.28"]
[Round "7.6"]
[White "Demchenko, Anton"]
[Black "Gleizerov, Evgeny"]
[Result "1/2-1/2"]
[ECO "C05"]
[WhiteElo "2610"]
[BlackElo "2468"]
[Annotator "ChessBase"]
[PlyCount "137"]
[EventDate "2021.03.23"]
[EventType "swiss"]
[EventCountry "RUS"]
[SourceTitle "playchess.com"]
[Source "ChessBase"]
[SourceQuality "1"]
[TimeControl "5400+30"]

1. d4 {[%emt 0:00:22]} e6 {[%emt 0:00:00]} 2. e4 {[%emt 0:01:21]} d5 {[%emt 0:00:11]} 3. Nd2 {[%emt 0:00:04]} Nf6 {[%emt 0:00:06]} 4. e5 {[%emt 0:00:06]} Nfd7 {[%emt 0:00:05]} 5. c3 {[%emt 0:00:08]} c5 {[%emt 0:00:04]} 6. f4 {[%emt 0:00:04]} Nc6 {[%emt 0:00:06]} 7. Ndf3 {[%emt 0:00:21]} Qb6 {[%emt 0:00:06]} 8. a3 {[%emt 0:01:01]} Be7 {[%emt 0:02:14]} 9. h4 {[%emt 0:00:06]} h5 {[%emt 0:02:45]} 10. Nh3 {[%emt 0:06:07]} cxd4 {[%emt 0:01:21]} 11. cxd4 {[%emt 0:01:02]} f5 {[%emt 0:00:07]} 12. Be2 {[%emt 0:01:35]} g6 {[%emt 0:00:53]} 13. O-O {[%emt 0:03:05]} a5 {[%emt 0:03:01]} 14. b3 {[%emt 0:01:47]} Ndb8 {[%emt 0:00:26]} 15. Be3 {[%emt 0:03:08]} Bd7 {[%emt 0:02:17]} 16. Nf2 {[%emt 0:04:08]} Na6 {[%emt 0:14:41]} 17. Nd3 {[%emt 0:04:47]} Rc8 {[%emt 0:03:33]} 18. Qd2 {[%emt 0:12:26]} Ncb8 {[%emt 0:10:59]} 19. b4 {[%emt 0:09:59]} axb4 {[%emt 0:03:41]} 20. axb4 {[%emt 0:01:02]} Bb5 {[%emt 0:00:44]} 21. Rfb1 {[%emt 0:10:52]} Kf7 {[%emt 0:09:59]} 22. Nc5 {[%emt 0:02:09]} Nc7 {[%emt 0:01:22]} 23. Bd1 {[%emt 0:03:43]} Qc6 {[%emt 0:06:47]} 24. Rc1 {[%emt 0:10:53]} b6 {[%emt 0:11:05]} 25. Na4 {[%emt 0:14:44]} Qb7 {[%emt 0:01:04]} 26. Nc3 {[%emt 0:00:13]} Bc4 {[%emt 0:01:56]} 27. b5 {[%emt 0:03:44]} Nxb5 {[%emt 0:03:00]} 28. Na4 {[%emt 0:00:00]} Nc7 {[%emt 0:02:28]} 29. Rab1 {[%emt 0:02:02]} b5 {[%emt 0:01:30]} 30. Nb2 {[%emt 0:00:11]} Qc6 {[%emt 0:04:12]} 31. Qf2 {[%emt 0:00:55]} Qd7 {[%emt 0:00:21]} 32. Be2 {[%emt 0:01:33]} Nc6 {[%emt 0:00:37]} 33. Nd3 {[%emt 0:00:05]} Ra8 {[%emt 0:00:59]} 34. Qg3 {[%emt 0:01:05]} Ra3 {[%emt 0:01:34]} 35. Rd1 {[%emt 0:00:10]} b4 {[%emt 0:03:05]} 36. Bc1 {[%emt 0:01:01]} Ra2 {[%emt 0:00:12]} 37. Bb2 {[%emt 0:00:11]} Kg7 {[%emt 0:04:33]} 38. Nc1 {[%emt 0:01:03]} Bxe2 {[%emt 0:00:42]} 39. Nxe2 {[%emt 0:00:28]} Na5 {[%emt 0:02:01]} 40. Nc1 {[%emt 0:00:01]} Ra4 {[%emt 0:00:01]} 41. Nd3 {[%emt 0:00:44]} Nc4 {[%emt 0:00:40]} 42. Nc5 {[%emt 0:00:52]} Bxc5 {[%emt 0:00:14]} 43. dxc5 {[%emt 0:00:01]} Qe7 {[%emt 0:00:48]} 44. Bd4 {[%emt 0:00:16]} Rb8 {[%emt 0:02:16]} 45. Rd3 {[%emt 0:01:39]} Na6 {[%emt 0:01:15]} 46. Kh2 {[%emt 0:00:45]} Ra3 {[%emt 0:00:58]} 47. Rdd1 {[%emt 0:00:56]} Ne3 {[%emt 0:01:08]} 48. Bxe3 {[%emt 0:00:14]} Rxe3 {[%emt 0:00:00]} 49. c6 {[%emt 0:00:08]} Rc3 {[%emt 0:00:23]} 50. Rdc1 {[%emt 0:00:27]} Rxc1 {[%emt 0:01:05]} 51. Rxc1 {[%emt 0:00:00]} b3 {[%emt 0:00:11]} 52. Rb1 {[%emt 0:00:28]} Nc5 {[%emt 0:01:36]} 53. Ng5 {[%emt 0:01:31]} Ne4 {[%emt 0:00:17]} 54. Qe3 {[%emt 0:00:20]} Nxg5 {[%emt 0:00:15]} 55. hxg5 {[%emt 0:00:05]} b2 {[%emt 0:00:07]} 56. Qc3 {[%emt 0:01:00]} Qc7 {[%emt 0:00:13]} 57. Qc5 {[%emt 0:00:30]} Rb6 {[%emt 0:00:27]} 58. Qa3 {[%emt 0:00:50]} Kf7 {[%emt 0:00:35]} 59. Rxb2 {[%emt 0:00:24]} Rxb2 {[%emt 0:00:03]} 60. Qxb2 {[%emt 0:00:05]} Qxc6 {[%emt 0:00:02]} 61. Qb8 {[%emt 0:00:54]} Qe8 {[%emt 0:00:20]} 62. Qc7+ {[%emt 0:00:25]} Qe7 {[%emt 0:00:07]} 63. Qb6 {[%emt 0:00:23]} Qd7 {[%emt 0:00:13]} 64. Qd4 {[%emt 0:00:26]} Ke8 {[%emt 0:00:56]} 65. Kg3 {[%emt 0:00:22]} Qc7 {[%emt 0:00:29]} 66. Qa4+ {[%emt 0:00:13]} Kf7 {[%emt 0:00:38]} 67. Qb4 {[%emt 0:00:10]} Qd7 {[%emt 0:00:23]} 68. Qd4 {[%emt 0:00:18]} Qb7 {[%emt 0:00:22]} 69. Qa4 {[%emt 0:00:18]} 1/2-1/2

[Event "Chelyabinskiy variant-A 2021"]
[Site "Chelyabinsk"]
[Date "2021.03.28"]
[Round "7.7"]
[White "Azarov, Sergei"]
[Black "Bryakin, Mikhail"]
[Result "1/2-1/2"]
[ECO "B12"]
[WhiteElo "2604"]
[BlackElo "2464"]
[Annotator "ChessBase"]
[PlyCount "90"]
[EventDate "2021.03.23"]
[EventType "swiss"]
[EventCountry "RUS"]
[SourceTitle "playchess.com"]
[Source "ChessBase"]
[SourceQuality "1"]
[TimeControl "5400+30"]

1. e4 {[%emt 0:00:00]} c6 {[%emt 0:00:00]} 2. d4 {[%emt 0:00:01]} d5 {[%emt 0:00:00]} 3. e5 {[%emt 0:00:17]} c5 {[%emt 0:00:00]} 4. dxc5 {[%emt 0:00:24]} e6 {[%emt 0:00:00]} 5. a3 {[%emt 0:00:57]} Bxc5 {[%emt 0:00:14]} 6. Qg4 {[%emt 0:02:57]} Ne7 {[%emt 0:00:22]} 7. Bd3 {[%emt 0:08:04]} h5 {[%emt 0:19:31]} 8. Qe2 {[%emt 0:02:34]} Nbc6 {[%emt 0:02:06]} 9. Nf3 {[%emt 0:00:46]} Qc7 {[%emt 0:01:08]} 10. O-O {[%emt 0:11:16]} Nd4 {[%emt 0:03:41]} 11. Nxd4 {[%emt 0:00:21]} Bxd4 {[%emt 0:00:09]} 12. Re1 {[%emt 0:00:20]} Nc6 {[%emt 0:01:19]} 13. Bb5 {[%emt 0:00:29]} Bd7 {[%emt 0:01:21]} 14. Bxc6 {[%emt 0:03:15]} Bxc6 {[%emt 0:01:28]} 15. c3 {[%emt 0:03:20]} Bb6 {[%emt 0:02:56]} 16. Bg5 {[%emt 0:02:38]} d4 {[%emt 0:17:28]} 17. cxd4 {[%emt 0:03:41]} Bxd4 {[%emt 0:00:58]} 18. Nc3 {[%emt 0:00:38]} Bxc3 {[%emt 0:06:49]} 19. bxc3 {[%emt 0:00:05]} Bd5 {[%emt 0:00:56]} 20. Qe3 {[%emt 0:13:49]} b6 {[%emt 0:08:57]} 21. Rad1 {[%emt 0:01:38]} Rc8 {[%emt 0:01:16]} 22. Rd3 {[%emt 0:01:27]} Qc4 {[%emt 0:00:46]} 23. h3 {[%emt 0:02:57]} Qa4 {[%emt 0:07:28]} 24. Red1 {[%emt 0:01:54]} Rc4 {[%emt 0:03:40]} 25. Rd4 {[%emt 0:04:38]} Qb3 {[%emt 0:00:33]} 26. R1d3 {[%emt 0:02:36]} Rxd4 {[%emt 0:05:13]} 27. Qxd4 {[%emt 0:04:16]} O-O {[%emt 0:01:40]} 28. Rg3 {[%emt 0:05:22]} Rc8 {[%emt 0:01:25]} 29. Bf6 {[%emt 0:02:42]} g6 {[%emt 0:00:21]} 30. Qf4 {[%emt 0:09:56]} Kh7 {[%emt 0:00:24]} 31. Be7 {[%emt 0:04:18]} Qb1+ {[%emt 0:02:27]} 32. Kh2 {[%emt 0:00:03]} Qf5 {[%emt 0:00:16]} 33. Qxf5 {[%emt 0:00:29]} gxf5 {[%emt 0:01:18]} 34. Rg5 {[%emt 0:01:48]} Kh6 {[%emt 0:01:12]} 35. h4 {[%emt 0:01:58]} f4 {[%emt 0:01:51]} 36. f3 {[%emt 0:00:12]} Bb3 {[%emt 0:01:30]} 37. Bf6 {[%emt 0:01:11]} Bc2 {[%emt 0:00:20]} 38. Rg7 {[%emt 0:00:31]} Bg6 {[%emt 0:00:40]} 39. c4 {[%emt 0:01:29]} a6 {[%emt 0:02:03]} 40. Kg1 {[%emt 0:00:11]} b5 {[%emt 0:00:58]} 41. cxb5 {[%emt 0:00:23]} axb5 {[%emt 0:00:05]} 42. Kh2 {[%emt 0:00:12]} Ra8 {[%emt 0:00:24]} 43. Kg1 {[%emt 0:00:08]} Rc8 {[%emt 0:00:44]} 44. Kh2 {[%emt 0:00:09]} Ra8 {[%emt 0:00:23]} 45. Kg1 {[%emt 0:00:04]} Rc8 {[%emt 0:00:05]} 1/2-1/2

[Event "Chelyabinskiy variant-A 2021"]
[Site "Chelyabinsk"]
[Date "2021.03.28"]
[Round "7.8"]
[White "Zarubitski, Viachaslau"]
[Black "Petrov, Nikita"]
[Result "1/2-1/2"]
[ECO "C48"]
[WhiteElo "2446"]
[BlackElo "2571"]
[Annotator "ChessBase"]
[PlyCount "31"]
[EventDate "2021.03.23"]
[EventType "swiss"]
[EventCountry "RUS"]
[SourceTitle "playchess.com"]
[Source "ChessBase"]
[SourceQuality "1"]
[TimeControl "5400+30"]

1. e4 {[%emt 0:00:00]} e5 {[%emt 0:00:00]} 2. Nf3 {[%emt 0:00:00]} Nc6 {[%emt 0:00:07]} 3. Nc3 {[%emt 0:00:00]} Nf6 {[%emt 0:00:26]} 4. Bb5 {[%emt 0:00:00]} Bc5 {[%emt 0:01:37]} 5. O-O {[%emt 0:00:15]} O-O {[%emt 0:00:33]} 6. Bxc6 {[%emt 0:00:05]} dxc6 {[%emt 0:00:09]} 7. h3 {[%emt 0:00:05]} Re8 {[%emt 0:03:40]} 8. d3 {[%emt 0:00:08]} Nd7 {[%emt 0:01:28]} 9. Be3 {[%emt 0:00:51]} Bd6 {[%emt 0:00:53]} 10. Nd2 {[%emt 0:03:53]} Nf8 {[%emt 0:01:41]} 11. Nc4 {[%emt 0:02:53]} Ng6 {[%emt 0:01:52]} 12. a4 {[%emt 0:00:29]} Bf8 {[%emt 0:09:12]} 13. Ne2 {[%emt 0:03:53]} Be6 {[%emt 0:02:14]} 14. b3 {[%emt 0:03:48]} a5 {[%emt 0:04:09]} 15. Qc1 {[%emt 0:16:17]} Qd7 {[%emt 0:05:41]} 16. Ng3 1/2-1/2

[Event "Chelyabinskiy variant-A 2021"]
[Site "Chelyabinsk"]
[Date "2021.03.28"]
[Round "7.9"]
[White "Utegaliyev, Azamat"]
[Black "Gabrielian, Artur"]
[Result "1/2-1/2"]
[ECO "B26"]
[WhiteElo "2507"]
[BlackElo "2448"]
[Annotator "ChessBase"]
[PlyCount "89"]
[EventDate "2021.03.23"]
[EventType "swiss"]
[EventCountry "RUS"]
[SourceTitle "playchess.com"]
[Source "ChessBase"]
[SourceQuality "1"]
[TimeControl "5400+30"]

1. e4 {[%emt 0:01:08]} c5 {[%emt 0:00:00]} 2. Nc3 {[%emt 0:00:07]} d6 {[%emt 0:00:00]} 3. g3 {[%emt 0:00:27]} Nc6 {[%emt 0:00:23]} 4. Bg2 {[%emt 0:00:05]} g6 {[%emt 0:00:09]} 5. d3 {[%emt 0:00:05]} Bg7 {[%emt 0:00:04]} 6. Be3 {[%emt 0:00:33]} Nf6 {[%emt 0:02:38]} 7. Nge2 {[%emt 0:00:18]} O-O {[%emt 0:00:34]} 8. O-O {[%emt 0:00:05]} Rb8 {[%emt 0:02:00]} 9. h3 {[%emt 0:00:24]} b5 {[%emt 0:00:44]} 10. Qd2 {[%emt 0:00:22]} b4 {[%emt 0:00:29]} 11. Nd1 {[%emt 0:00:06]} Nd7 {[%emt 0:00:38]} 12. Bh6 {[%emt 0:01:29]} Nd4 {[%emt 0:02:35]} 13. Bxg7 {[%emt 0:02:25]} Kxg7 {[%emt 0:00:22]} 14. a3 {[%emt 0:01:43]} a5 {[%emt 0:02:53]} 15. Nxd4 {[%emt 0:01:34]} cxd4 {[%emt 0:00:05]} 16. axb4 {[%emt 0:00:04]} axb4 {[%emt 0:00:35]} 17. b3 {[%emt 0:00:27]} Qc7 {[%emt 0:03:18]} 18. f4 {[%emt 0:05:07]} e5 {[%emt 0:00:28]} 19. Nb2 {[%emt 0:00:46]} Nc5 {[%emt 0:04:47]} 20. f5 {[%emt 0:07:50]} f6 {[%emt 0:00:45]} 21. g4 {[%emt 0:00:23]} g5 {[%emt 0:12:00]} 22. Ra2 {[%emt 0:02:10]} Ba6 {[%emt 0:04:23]} 23. Rfa1 {[%emt 0:05:33]} Rb6 {[%emt 0:00:30]} 24. Na4 {[%emt 0:03:01]} Nxa4 {[%emt 0:00:33]} 25. Rxa4 {[%emt 0:00:05]} Qb7 {[%emt 0:00:41]} 26. Bf3 {[%emt 0:00:54]} h6 {[%emt 0:03:08]} 27. h4 {[%emt 0:07:37]} Rh8 {[%emt 0:05:37]} 28. Kg2 Qc6 29. Kg3 {[%emt 0:02:56]} Qb7 {[%emt 0:14:47]} 30. Rh1 {[%emt 0:02:02]} Bb5 {[%emt 0:01:32]} 31. Raa1 {[%emt 0:15:57]} Bc6 {[%emt 0:06:12]} 32. hxg5 {[%emt 0:06:16]} fxg5 {[%emt 0:03:20]} 33. Rh5 {[%emt 0:30:57]} Be8 {[%emt 0:06:49]} 34. Rxh6 {[%emt 0:00:43]} Rxh6 {[%emt 0:01:44]} 35. Qxg5+ {[%emt 0:00:02]} Kh7 {[%emt 0:04:32]} 36. Qd8 {[%emt 0:00:03]} Rc6 {[%emt 0:05:50]} 37. Qxe8 {[%emt 0:02:14]} Rc8 {[%emt 0:00:28]} 38. Ra7 {[%emt 0:01:10]} Qxa7 {[%emt 0:00:04]} 39. Qxc8 {[%emt 0:00:03]} Qe7 {[%emt 0:00:21]} 40. Kg2 {[%emt 0:00:34]} Kg7 {[%emt 0:01:39]} 41. Qc4 {[%emt 0:01:05]} Qg5 {[%emt 0:04:51]} 42. Qc7+ {[%emt 0:00:56]} Kh8 {[%emt 0:00:07]} 43. Qb8+ {[%emt 0:01:00]} Kg7 {[%emt 0:00:14]} 44. Qc7+ {[%emt 0:00:10]} Kh8 {[%emt 0:00:05]} 45. Qb8+ {[%emt 0:00:04]} 1/2-1/2

[Event "Chelyabinskiy variant-A 2021"]
[Site "Chelyabinsk"]
[Date "2021.03.28"]
[Round "7.10"]
[White "Salemgareev, Tagir"]
[Black "Suleymenov, Alisher"]
[Result "0-1"]
[ECO "A56"]
[WhiteElo "2480"]
[BlackElo "2440"]
[Annotator "ChessBase"]
[PlyCount "74"]
[EventDate "2021.03.23"]
[EventType "swiss"]
[EventCountry "RUS"]
[SourceTitle "playchess.com"]
[Source "ChessBase"]
[SourceQuality "1"]
[TimeControl "5400+30"]

1. d4 {[%emt 0:00:46]} Nf6 {[%emt 0:00:00]} 2. c4 {[%emt 0:00:06]} c5 {[%emt 0:00:00]} 3. d5 {[%emt 0:00:04]} g6 {[%emt 0:00:07]} 4. Nc3 {[%emt 0:00:07]} Bg7 {[%emt 0:00:05]} 5. e4 {[%emt 0:00:05]} d6 {[%emt 0:00:04]} 6. Nf3 {[%emt 0:00:03]} O-O {[%emt 0:00:05]} 7. h3 {[%emt 0:00:04]} e6 {[%emt 0:00:03]} 8. Bd3 {[%emt 0:00:05]} Na6 {[%emt 0:01:19]} 9. O-O {[%emt 0:01:52]} e5 {[%emt 0:00:04]} 10. a3 {[%emt 0:09:46]} Kh8 {[%emt 0:00:30]} 11. Rb1 {[%emt 0:00:57]} Ng8 {[%emt 0:00:53]} 12. Ne1 {[%emt 0:00:59]} f5 {[%emt 0:04:15]} 13. exf5 {[%emt 0:08:50]} gxf5 {[%emt 0:00:30]} 14. f4 {[%emt 0:00:03]} Nc7 {[%emt 0:18:14]} 15. Nc2 {[%emt 0:02:08]} e4 {[%emt 0:03:09]} 16. Be2 {[%emt 0:00:49]} a6 {[%emt 0:00:21]} 17. Bd2 {[%emt 0:01:45]} b5 {[%emt 0:07:32]} 18. b3 {[%emt 0:08:34]} Bd7 {[%emt 0:06:27]} 19. Qc1 {[%emt 0:09:56]} Ne7 {[%emt 0:07:57]} 20. Bd1 {[%emt 0:06:54]} a5 {[%emt 0:10:36]} 21. Ne2 {[%emt 0:03:07]} Rg8 {[%emt 0:06:40]} 22. Bc3 {[%emt 0:01:49]} Qf8 {[%emt 0:06:29]} 23. Ne3 {[%emt 0:01:11]} b4 {[%emt 0:00:11]} 24. Bxg7+ {[%emt 0:02:10]} Qxg7 {[%emt 0:00:52]} 25. Bc2 {[%emt 0:07:50]} bxa3 {[%emt 0:06:30]} 26. Qd1 {[%emt 0:27:29]} Ng6 {[%emt 0:07:54]} 27. Kh2 {[%emt 0:00:29]} Nh4 {[%emt 0:02:46]} 28. Rg1 {[%emt 0:02:57]} Qh6 {[%emt 0:01:56]} 29. Rf1 {[%emt 0:01:21]} Rg6 {[%emt 0:04:10]} 30. Qe1 {[%emt 0:00:37]} Rag8 {[%emt 0:00:43]} 31. Qc3+ {[%emt 0:00:32]} Qg7 {[%emt 0:01:15]} 32. Qxg7+ {[%emt 0:00:53]} R6xg7 {[%emt 0:00:01]} 33. Rf2 {[%emt 0:00:53]} Na6 {[%emt 0:00:54]} 34. Ra1 {[%emt 0:01:12]} Nb4 {[%emt 0:00:18]} 35. Nc3 {[%emt 0:00:27]} Rg3 {[%emt 0:01:08]} 36. Ncd1 {[%emt 0:00:00]} a2 {[%emt 0:00:39]} 37. Ng4 {[%emt 0:01:09]} fxg4 {[%emt 0:00:41]} 0-1

[Event "Chelyabinskiy variant-A 2021"]
[Site "Chelyabinsk"]
[Date "2021.03.28"]
[Round "7.11"]
[White "Garifullina, Leya"]
[Black "Nesterov, Arseniy"]
[Result "1/2-1/2"]
[ECO "C70"]
[WhiteElo "2375"]
[BlackElo "2476"]
[Annotator "ChessBase"]
[PlyCount "63"]
[EventDate "2021.03.23"]
[EventType "swiss"]
[EventCountry "RUS"]
[SourceTitle "playchess.com"]
[Source "ChessBase"]
[SourceQuality "1"]
[TimeControl "5400+30"]

1. e4 {[%emt 0:00:00]} e5 {[%emt 0:00:00]} 2. Nf3 {[%emt 0:00:00]} Nc6 {[%emt 0:00:00]} 3. Bb5 {[%emt 0:00:00]} a6 {[%emt 0:00:00]} 4. Ba4 {[%emt 0:00:00]} b5 {[%emt 0:00:00]} 5. Bb3 {[%emt 0:00:00]} Na5 {[%emt 0:00:00]} 6. O-O {[%emt 0:00:14]} d6 {[%emt 0:00:00]} 7. d4 {[%emt 0:00:05]} exd4 {[%emt 0:00:00]} 8. Nxd4 {[%emt 0:00:05]} Bb7 {[%emt 0:00:00]} 9. Bd2 {[%emt 0:00:08]} Nxb3 {[%emt 0:00:00]} 10. Nxb3 {[%emt 0:00:05]} Rb8 {[%emt 0:00:00]} 11. a4 {[%emt 0:00:06]} bxa4 {[%emt 0:00:04]} 12. Rxa4 {[%emt 0:00:04]} Nf6 {[%emt 0:00:17]} 13. Nc3 {[%emt 0:00:08]} Be7 {[%emt 0:00:24]} 14. Bf4 {[%emt 0:06:18]} O-O {[%emt 0:06:47]} 15. e5 {[%emt 0:03:14]} dxe5 {[%emt 0:04:09]} 16. Qxd8 {[%emt 0:00:47]} Rbxd8 {[%emt 0:02:07]} 17. Bxe5 {[%emt 0:00:07]} Nd5 {[%emt 0:04:30]} 18. Rc4 {[%emt 0:02:55]} f6 {[%emt 0:09:43]} 19. Bd4 {[%emt 0:06:33]} Bd6 {[%emt 0:02:00]} 20. Nxd5 {[%emt 0:03:55]} Bxd5 {[%emt 0:00:02]} 21. Ra4 {[%emt 0:00:05]} Rfe8 {[%emt 0:04:23]} 22. Be3 {[%emt 0:03:28]} Bxb3 {[%emt 0:00:16]} 23. cxb3 {[%emt 0:00:06]} Rb8 {[%emt 0:00:14]} 24. Rxa6 {[%emt 0:00:50]} Rxb3 {[%emt 0:00:05]} 25. Bd4 {[%emt 0:00:05]} Rd3 {[%emt 0:00:56]} 26. Bc3 {[%emt 0:00:20]} Bc5 {[%emt 0:00:47]} 27. Raa1 {[%emt 0:00:35]} Kf7 {[%emt 0:04:21]} 28. Rfe1 {[%emt 0:00:18]} Re6 {[%emt 0:01:15]} 29. Rxe6 {[%emt 0:00:34]} Kxe6 {[%emt 0:00:01]} 30. Kf1 {[%emt 0:00:08]} Bb6 {[%emt 0:00:25]} 31. Ke2 {[%emt 0:00:06]} Rd5 {[%emt 0:00:02]} 32. Ra4 {[%emt 0:00:44]} 1/2-1/2

[Event "Chelyabinskiy variant-A 2021"]
[Site "Chelyabinsk"]
[Date "2021.03.28"]
[Round "7.12"]
[White "Aleksandrov, Aleksej"]
[Black "Sitnikov, Anton"]
[Result "1/2-1/2"]
[ECO "A02"]
[WhiteElo "2563"]
[BlackElo "2437"]
[Annotator "ChessBase"]
[PlyCount "81"]
[EventDate "2021.03.23"]
[EventType "swiss"]
[EventCountry "RUS"]
[SourceTitle "playchess.com"]
[Source "ChessBase"]
[SourceQuality "1"]
[TimeControl "5400+30"]

1. f4 {[%emt 0:00:00]} b6 {[%emt 0:07:07]} 2. d3 {[%emt 0:08:09]} Bb7 {[%emt 0:00:54]} 3. e4 {[%emt 0:00:11]} g6 {[%emt 0:07:17]} 4. Nf3 {[%emt 0:02:23]} Bg7 {[%emt 0:00:09]} 5. Be2 {[%emt 0:00:21]} e6 {[%emt 0:09:06]} 6. c3 {[%emt 0:01:06]} Ne7 {[%emt 0:01:10]} 7. Be3 {[%emt 0:00:08]} d6 {[%emt 0:11:14]} 8. Nbd2 {[%emt 0:04:47]} Nd7 {[%emt 0:01:08]} 9. h3 {[%emt 0:05:04]} e5 {[%emt 0:01:52]} 10. fxe5 {[%emt 0:08:26]} Nxe5 {[%emt 0:10:30]} 11. O-O {[%emt 0:01:20]} O-O {[%emt 0:00:30]} 12. Qb3 {[%emt 0:01:26]} h6 {[%emt 0:11:30]} 13. Rf2 {[%emt 0:08:58]} Nxf3+ {[%emt 0:01:48]} 14. Bxf3 {[%emt 0:02:36]} Kh8 {[%emt 0:07:12]} 15. Bg4 {[%emt 0:06:25]} f5 {[%emt 0:03:30]} 16. exf5 {[%emt 0:00:22]} Nxf5 {[%emt 0:00:30]} 17. Bxf5 {[%emt 0:00:13]} Rxf5 {[%emt 0:00:54]} 18. Rxf5 {[%emt 0:00:09]} gxf5 {[%emt 0:00:04]} 19. Qf7 {[%emt 0:10:05]} Qe8 {[%emt 0:17:50]} 20. Qxe8+ {[%emt 0:00:05]} Rxe8 {[%emt 0:00:03]} 21. Re1 {[%emt 0:00:13]} a5 {[%emt 0:03:55]} 22. Nf3 {[%emt 0:00:56]} Kh7 {[%emt 0:02:04]} 23. Kf2 {[%emt 0:00:53]} a4 {[%emt 0:00:25]} 24. a3 {[%emt 0:00:24]} c5 {[%emt 0:00:16]} 25. Bf4 {[%emt 0:00:21]} Rxe1 {[%emt 0:00:13]} 26. Nxe1 {[%emt 0:00:36]} d5 {[%emt 0:00:15]} 27. Nf3 {[%emt 0:01:41]} d4 {[%emt 0:01:13]} 28. c4 {[%emt 0:00:08]} Ba6 {[%emt 0:00:47]} 29. Bd6 {[%emt 0:01:21]} Kg6 {[%emt 0:00:22]} 30. Nd2 {[%emt 0:00:19]} Kf7 {[%emt 0:00:22]} 31. Bc7 {[%emt 0:01:17]} b5 {[%emt 0:00:05]} 32. Bd6 {[%emt 0:00:12]} Bf8 {[%emt 0:01:03]} 33. Bxf8 {[%emt 0:00:08]} Kxf8 {[%emt 0:00:01]} 34. Kg3 {[%emt 0:01:26]} Kf7 {[%emt 0:01:04]} 35. Kf4 {[%emt 0:00:20]} Ke6 {[%emt 0:00:34]} 36. g4 {[%emt 0:02:51]} fxg4 {[%emt 0:00:03]} 37. hxg4 {[%emt 0:00:06]} bxc4 {[%emt 0:00:05]} 38. dxc4 {[%emt 0:00:06]} Kd6 {[%emt 0:01:19]} 39. Ne4+ {[%emt 0:01:32]} Kc6 {[%emt 0:00:04]} 40. Nd2 {[%emt 0:00:27]} Kd6 {[%emt 0:00:37]} 41. Ne4+ {[%emt 0:00:08]} 1/2-1/2

[Event "Chelyabinskiy variant-A 2021"]
[Site "Chelyabinsk"]
[Date "2021.03.28"]
[Round "7.13"]
[White "Afanasiev, Nikita"]
[Black "Obgolts, Erik"]
[Result "1-0"]
[ECO "E91"]
[WhiteElo "2519"]
[BlackElo "2404"]
[Annotator "ChessBase"]
[PlyCount "71"]
[EventDate "2021.03.23"]
[EventType "swiss"]
[EventCountry "RUS"]
[SourceTitle "playchess.com"]
[Source "ChessBase"]
[SourceQuality "1"]
[TimeControl "5400+30"]

1. d4 {[%emt 0:01:15]} Nf6 {[%emt 0:01:24]} 2. c4 {[%emt 0:00:21]} g6 {[%emt 0:00:06]} 3. Nc3 {[%emt 0:00:15]} Bg7 {[%emt 0:00:23]} 4. e4 {[%emt 0:00:17]} d6 {[%emt 0:00:22]} 5. Nf3 {[%emt 0:01:59]} O-O {[%emt 0:00:19]} 6. Be2 {[%emt 0:00:07]} Bg4 {[%emt 0:01:01]} 7. Be3 {[%emt 0:01:18]} Nfd7 {[%emt 0:00:05]} 8. O-O {[%emt 0:01:26]} e5 {[%emt 0:00:26]} 9. d5 {[%emt 0:03:49]} a5 {[%emt 0:00:05]} 10. Nd2 {[%emt 0:08:29]} Bxe2 {[%emt 0:00:31]} 11. Qxe2 {[%emt 0:00:05]} f5 {[%emt 0:00:18]} 12. f3 {[%emt 0:03:16]} Na6 {[%emt 0:02:01]} 13. a3 {[%emt 0:02:32]} Qh4 {[%emt 0:00:12]} 14. Bf2 {[%emt 0:05:05]} Qg5 {[%emt 0:07:42]} 15. Be3 {[%emt 0:09:54]} Qh4 {[%emt 0:01:33]} 16. Rab1 {[%emt 0:21:23]} Bh6 {[%emt 0:01:26]} 17. b4 {[%emt 0:02:31]} Bxe3+ {[%emt 0:01:09]} 18. Qxe3 {[%emt 0:02:10]} axb4 {[%emt 0:03:22]} 19. axb4 {[%emt 0:00:04]} c5 {[%emt 0:14:18]} 20. dxc6 {[%emt 0:04:19]} bxc6 {[%emt 0:00:04]} 21. b5 {[%emt 0:00:12]} Nc7 {[%emt 0:02:26]} 22. bxc6 {[%emt 0:01:24]} Nc5 {[%emt 0:00:15]} 23. Nd5 {[%emt 0:04:25]} f4 {[%emt 0:26:22]} 24. Qc3 {[%emt 0:06:03]} N7e6 {[%emt 0:04:11]} 25. Nb3 {[%emt 0:05:51]} Nxb3 {[%emt 0:07:35]} 26. Rxb3 {[%emt 0:01:08]} Rac8 {[%emt 0:05:18]} 27. Rb7 {[%emt 0:02:04]} Nd4 {[%emt 0:02:26]} 28. Qd2 {[%emt 0:00:08]} Rf7 {[%emt 0:04:52]} 29. Rxf7 {[%emt 0:00:55]} Kxf7 {[%emt 0:00:06]} 30. c7 {[%emt 0:00:18]} g5 {[%emt 0:04:59]} 31. Qf2 {[%emt 0:01:02]} Qh5 {[%emt 0:02:11]} 32. Qa2 {[%emt 0:05:55]} g4 {[%emt 0:05:03]} 33. c5 {[%emt 0:01:00]} Kg7 {[%emt 0:00:04]} 34. cxd6 {[%emt 0:01:30]} gxf3 {[%emt 0:00:22]} 35. gxf3 {[%emt 0:00:19]} Kh6 {[%emt 0:01:20]} 36. Qg2 {[%emt 0:01:30]} 1-0